[Event "Israeli Women Championship 2022"]
[Site "Yosiah Arad"]
[Date "2022.12.11"]
[Round "7.1"]
[White "Efroimski, Marsel"]
[Black "Kochavi, Dana"]
[Result "1/2-1/2"]
[ECO "B10"]
[WhiteElo "2470"]
[BlackElo "1928"]
[Annotator "TA"]
[PlyCount "123"]
[EventDate "2022.12.05"]
[EventType "tourn"]
[EventCountry "ISR"]
[SourceTitle "playchess.com"]
[Source "ChessBase"]
[SourceQuality "1"]
[TimeControl "40/5400+30:1800+30"]

{[%evp 10,123,4,10,1,25,14,-10,18,10,21,15,17,10,30,17,33,16,41,30,29,30,36,44,42,22,91,75,82,91,77,68,79,-12,-12,-10,-8,-14,-15,-9,-9,-15,0,-6,0,0,40,0,0,0,4,0,8,0,0,0,14,0,4,0,26,0,23,0,0,0,15,0,0,0,0,0,18,0,0,0,0,0,0,0,0,0,0,0,0,-1,-1,-1,-1,-1,0,0,0,0,0,0,0,0,0,0,0,0,0,0,0,0,0,0,0,0,0,-8,-8,-8,-6,-6]} 1. e4 {[%emt 0:00:01]} c6 {[%emt 0:00:22]} 2. c4 {[%emt 0:00:04]} d5 {[%emt 0:00:02]} 3. cxd5 {[%emt 0:00:06]} cxd5 {[%emt 0:00:05]} 4. exd5 {[%emt 0:00:03]} Nf6 {[%emt 0:00:08]} 5. Nc3 {[%emt 0:00:03]} Nxd5 {[%emt 0:00:04]} 6. Nf3 {[%emt 0:00:07]} g6 {[%emt 0:00:24] B10: Caro-Kann: 2 d3 and 2 c4.} 7. Qb3 {[%emt 0:02:27]} Nb6 {[%emt 0:00:10]} 8. a4 {[%emt 0:01:36]} Be6 {[%emt 0:03:33] Inhibits a5.} 9. Qb5+ {[%emt 0:00:47]} Bd7 {[%emt 0:02:09] [#]} 10. Qe5 $146 {[%emt 0:06:49][%mdl 128] White has some attack.} ({Predecessor:} 10. Qb3 Bc6 11. a5 N6d7 12. Bc4 e6 13. O-O Bg7 14. d4 {0-1 (55) Kadam,O (2114)-Vrolijk,L (2502) Chess.com INT 2020}) 10... f6 {[%emt 0:02:20]} 11. Qe3 {[%emt 0:01:23]} Nc6 {[%emt 0:05:00]} 12. a5 {[%emt 0:04:59]} Nc8 {[%emt 0:00:21]} (12... Nb4 {is more complex.} 13. Qe4 e5 14. Nxe5 fxe5 15. axb6 Qxb6 16. Qxe5+ Qe6) 13. a6 {[%emt 0:02:14]} (13. Ne4 $5 {[%cal Ra5a6]} e6 14. Bc4 $11) 13... bxa6 {[%emt 0:06:06]} (13... Nd6 {looks sharper.} 14. axb7 Rb8 15. Ne4 e5) 14. Bxa6 {[%emt 0:00:19]} Nb4 {[%emt 0:01:10] [#] aiming for ...Nc2+.} 15. O-O {[%emt 0:06:20]} Nxa6 {[%emt 0:00:22]} 16. Rxa6 {[%emt 0:00:01]} Bg7 {[%emt 0:00:50]} 17. Nd4 {[%emt 0:03:35]} Nb6 {[%emt 0:08:36]} (17... O-O $1 $11) 18. Ne6 $16 {[%emt 0:02:29] White is much more active. The black rooks are badly placed.} Bxe6 19. Qxe6 {[%emt 0:00:02] Strongly threatening Re1.} Qc8 {[%emt 0:00:41] [#]} 20. Qa2 {[%emt 0:00:48] Hoping for d3.} Qc4 {[%emt 0:02:16] Against d3} 21. Rxa7 {[%emt 0:26:16]} (21. b3 $16 Qc7 22. Ra5) 21... Qxa2 $11 {[%emt 0:00:15]} 22. Rxa2 {[%emt 0:00:02]} Rxa2 {[%emt 0:02:36]} 23. Nxa2 {[%emt 0:00:02]} Kf7 {[%emt 0:00:48]} 24. Rd1 {[%emt 0:04:13]} f5 {[%emt 0:01:04]} 25. Nc3 {[%emt 0:00:49]} Rd8 {[%emt 0:02:12][%mdl 1024] Black has compensation.} 26. Kf1 {[%emt 0:02:51]} Rd4 {[%emt 0:02:31]} 27. Ke2 {[%emt 0:02:07]} Nd5 {[%emt 0:03:29]} 28. g3 {[%emt 0:02:32] Inhibits Nf4+.} Nb4 {[%emt 0:02:26]} 29. d3 {[%emt 0:00:14]} Rd7 {[%emt 0:00:19]} 30. Be3 {[%emt 0:01:38]} Nc6 {[%emt 0:00:27]} 31. Rd2 {[%emt 0:02:59]} Rb7 {[%emt 0:06:08]} 32. Kd1 {[%emt 0:06:43]} Rd7 {[%emt 0:02:00]} 33. f4 {[%emt 0:06:26]} Nb4 {[%emt 0:06:05]} 34. Ke2 {[%emt 0:07:07]} Rc7 {[%emt 0:11:25]} 35. d4 {[%emt 0:05:41]} e6 {[%emt 0:01:07]} 36. Kf2 {[%emt 0:01:33]} Rc4 {[%emt 0:05:39] The position is equal.} 37. Ke2 {[%emt 0:03:01]} Rc7 {[%emt 0:00:08]} 38. Bf2 {[%emt 0:00:21]} Ke7 {[%emt 0:02:59]} 39. Rd1 {[%emt 0:00:35]} Rb7 {[%emt 0:00:59]} 40. Rd2 {[%emt 0:00:20]} Rd7 {[%emt 0:11:27]} 41. Kf3 {[%emt 0:07:32]} (41. d5 $5 {[%cal Rf2c5]} Bxc3 42. Bc5+ (42. bxc3 Nxd5 43. Bd4 Rb7 $14) 42... Ke8 43. bxc3 Nxd5 44. Bd4 $14 (44. c4 $2 Nc3+ 45. Ke3 Rxd2 $19)) 41... Nc6 {[%emt 0:03:53]} 42. Ne2 {[%emt 0:01:36]} Rb7 {[%emt 0:03:44]} 43. Kg2 {[%emt 0:00:37]} Na5 {[%emt 0:05:18]} 44. Rc2 {[%emt 0:03:16]} Nb3 {[%emt 0:00:47]} 45. Be1 {[%emt 0:12:09]} Nxd4 {[%emt 0:07:29]} 46. Nxd4 {[%emt 0:00:01]} Bxd4 {[%emt 0:00:09][%mdl 4096] Endgame KRB-KRB} 47. b4 {[%emt 0:00:01]} e5 {[%emt 0:01:26]} 48. fxe5 {[%emt 0:00:55]} Bxe5 {[%emt 0:00:08]} 49. Kf3 {[%emt 0:00:24]} Bd6 {[%emt 0:00:11]} 50. Ke2 {[%emt 0:03:06]} f4 {[%emt 0:02:46]} (50... Bxb4 $2 51. Rb2 $18) 51. gxf4 {[%emt 0:00:51]} Bxf4 {[%emt 0:00:07]} 52. Kd3 {[%emt 0:00:03]} Bd6 {[%emt 0:00:32]} 53. Re2+ {[%emt 0:02:14]} Kd7 {[%emt 0:00:14]} 54. Kc4 {[%emt 0:00:07]} Kc6 {[%emt 0:01:26]} 55. h3 {[%emt 0:02:51]} Re7 {[%emt 0:01:15]} 56. b5+ {[%emt 0:00:36]} Kb7 {[%emt 0:00:46]} 57. Rd2 {[%emt 0:00:57]} Bc7 {[%emt 0:00:06]} 58. Rd1 {[%emt 0:00:52]} Re4+ {[%emt 0:00:15]} 59. Kd3 {[%emt 0:01:02]} Re5 {[%emt 0:01:31]} 60. Rb1 {[%emt 0:00:12]} Rh5 {[%emt 0:00:19]} 61. h4 {[%emt 0:00:26]} Bd8 {[%emt 0:00:31]} 62. Kc4 {[%emt 0:01:19] Weighted Error Value: White=0.07 (flawless) /Black=0.07 (flawless)} 1/2-1/2

[Event "Israeli Women Championship 2022"]
[Site "Yosiah Arad"]
[Date "2022.12.11"]
[Round "7.2"]
[White "Tashkinova, Sofiia"]
[Black "Shvayger, Yuliya"]
[Result "0-1"]
[ECO "B30"]
[WhiteElo "2006"]
[BlackElo "2350"]
[Annotator "TA"]
[PlyCount "86"]
[EventDate "2022.12.05"]
[EventType "tourn"]
[EventCountry "ISR"]
[SourceTitle "playchess.com"]
[Source "ChessBase"]
[SourceQuality "1"]
[TimeControl "40/5400+30:1800+30"]

{[%evp 9,86,-8,-10,-5,11,1,13,-7,4,0,8,2,0,-75,-75,-132,-136,-171,-133,-151,-103,-105,-105,-100,-100,-142,-129,-132,-116,-118,-106,-164,-147,-158,-122,-124,-109,-142,-137,-118,-140,-216,-193,-186,-209,-200,-191,-204,-186,-195,-170,-204,-153,-141,-116,-165,-150,-277,-267,-274,-231,-703,-672,-1845,-1870,-2077,-1572,-1943,-1916,-1752,-1310,-29989,-29990,-29993,-29994,-29994,-29995,-29997,-29998]} 1. e4 {[%emt 0:00:02]} c5 {[%emt 0:00:07]} 2. Nf3 {[%emt 0:00:05]} Nc6 {[%emt 0:00:13]} 3. Bb5 {[%emt 0:00:33]} e6 {[%emt 0:02:08]} 4. Bxc6 {[%emt 0:01:54]} bxc6 {[%emt 0:00:20]} 5. e5 {[%emt 0:02:49]} f6 {[%emt 0:06:21]} 6. O-O {[%emt 0:03:52] B30: Sicilian: 2...Nc6 3 Bb5, lines without ...g6.} fxe5 {[%emt 0:03:08]} 7. Nxe5 {[%emt 0:01:39]} Nf6 {[%emt 0:00:13][%cal Bg8f6,Bf6d5,Bd5f4][%mdl 32] Prevents Qh5+.} 8. b3 {[%emt 0:03:35] The position is equal.} d6 {[%emt 0:07:14]} 9. Ng4 {[%emt 0:04:11]} (9. Nxc6 $2 {too greedy.} Qc7 10. Nxa7 (10. Qf3 $2 Bb7 $19) 10... Qxa7 $19) 9... Be7 {[%emt 0:08:50]} 10. Bb2 $1 {[%emt 0:02:58]} O-O $36 {[%emt 0:00:22][%mdl 2048] [#] Black is more active.} 11. Na3 $146 {[%emt 0:04:47]} (11. Nxf6+ $11 {remains equal.} Bxf6 12. Bxf6 Qxf6 13. Nc3) ({Predecessor:} 11. Nxf6+ Bxf6 12. Bxf6 Qxf6 13. Nc3 e5 14. Qh5 Qf4 15. Qe2 Bf5 16. d3 Rae8 17. Ne4 {0-1 (50) Boehnisch,M (2302)-Sveshnikov,E (2509) Radebeul 2016}) 11... Nd5 $17 {[%emt 0:05:36]} 12. c4 {[%emt 0:10:15]} (12. Kh1 $142) 12... Nf4 {[%emt 0:00:08]} 13. d3 {[%emt 0:10:33]} e5 {[%emt 0:00:11]} 14. f3 {[%emt 0:01:53]} Qe8 {[%emt 0:04:08]} (14... Bf5 $142 {White must now prevent ...Qe8.} 15. Nf2 Bh4) 15. Bc1 {[%emt 0:09:09]} Qg6 {[%emt 0:03:03][%cal Of4g2] [#] Hoping for ...Nxg2!} 16. Bxf4 {[%emt 0:00:56]} Rxf4 {[%emt 0:00:38]} 17. g3 {[%emt 0:06:35]} Rf7 {[%emt 0:08:00][%cal Oe5e4]} 18. Qe2 {[%emt 0:03:57] Prevents e4.} Bf5 {[%emt 0:02:15]} 19. Rad1 {[%emt 0:02:49]} Raf8 {[%emt 0:00:17]} 20. Nc2 {[%emt 0:01:48]} (20. Nb1 $17 {keeps fighting.}) 20... h5 {[%emt 0:01:33]} 21. Nge3 {[%emt 0:02:15]} Bh3 {[%emt 0:00:43]} 22. Ng2 {[%emt 0:00:29]} Bg5 {[%emt 0:06:16]} 23. b4 {[%emt 0:04:40]} cxb4 {[%emt 0:04:59]} 24. Nxb4 {[%emt 0:00:49]} Rc8 {[%emt 0:04:43]} 25. Qe4 {[%emt 0:03:10] [#]} (25. Rf2 $17) 25... Bf5 $1 $19 {[%emt 0:00:17]} 26. Qe2 {[%emt 0:00:06]} Rb7 {[%emt 0:04:49][%cal Bf7b7,Bb7b2,Bb2b3][%mdl 32]} 27. a3 {[%emt 0:04:15]} a5 {[%emt 0:00:10]} 28. Nc2 {[%emt 0:00:06]} Rb2 {[%emt 0:02:02]} 29. Rf2 {[%emt 0:00:34]} Rb3 {[%emt 0:03:13][%cal Rf5d3] Inhibits c5.} 30. Nge1 {[%emt 0:01:29]} Rcb8 {[%emt 0:00:28] Prevents c5.} 31. c5 {[%emt 0:02:37]} Rd8 {[%emt 0:08:54] Black has more active pieces.} ({Worse is} 31... dxc5 32. Qxe5 R3b5 33. a4 $17) 32. d4 {[%emt 0:01:25]} (32. Ne3 $17 {is a better defense.}) 32... Qe6 {[%emt 0:06:03]} 33. dxe5 {[%emt 0:00:47]} (33. h4 $17 Bf6 34. Ne3 exd4 35. Nxf5 Qxf5 36. Qc4+ Qd5 37. Qxd5+ cxd5 38. cxd6) 33... dxe5 {[%emt 0:00:11]} 34. Rxd8+ {[%emt 0:00:35]} Bxd8 {[%emt 0:00:02][%cal Bg5d8,Bd8e7,Be7c5][%mdl 32]} 35. f4 $2 {[%emt 0:01:48]} (35. Ne3 Bh3 36. Nc4) 35... Be7 {[%emt 0:01:32]} 36. Rf1 {[%emt 0:07:02]} Bxc5+ {[%emt 0:00:11]} 37. Kg2 {[%emt 0:00:35]} Bh3+ {[%emt 0:00:35] A strong pair of Bishops.} 38. Kh1 {[%emt 0:00:09]} Bxf1 {[%emt 0:00:12]} 39. Qxf1 {[%emt 0:00:23]} Qd5+ {[%emt 0:00:45]} 40. Ng2 {[%emt 0:00:49]} exf4 {[%emt 0:00:45] Black mates.} 41. gxf4 {[%emt 0:30:47]} h4 {[%emt 0:30:40][%cal Bh5h4,Bh4h3][%mdl 32]} 42. Nce1 {[%emt 0:00:00]} h3 {[%emt 0:00:00]} 43. f5 {[%emt 0:00:00]} Rb1 {[%emt 0:00:00] Weighted Error Value: White=0.54/Black=0.09 (flawless)} 0-1

[Event "Israeli Women Championship 2022"]
[Site "Yosiah Arad"]
[Date "2022.12.11"]
[Round "7.3"]
[White "Kluchik, Julia"]
[Black "Orian, Noga"]
[Result "1-0"]
[ECO "E14"]
[WhiteElo "1887"]
[BlackElo "1947"]
[Annotator "TA"]
[PlyCount "97"]
[EventDate "2022.12.05"]
[EventType "tourn"]
[EventCountry "ISR"]
[SourceTitle "playchess.com"]
[Source "ChessBase"]
[SourceQuality "1"]
[TimeControl "40/5400+30:1800+30"]

{[%evp 18,97,20,0,0,0,26,25,23,32,51,0,17,11,19,21,54,9,18,16,33,28,66,78,70,75,67,67,156,157,279,285,283,271,276,279,265,239,300,187,198,188,198,176,219,232,738,733,720,702,1049,1043,1029,1005,1118,984,1041,1046,5406,5381,5502,5406,5365,5362,5361,5406,29978,29979,29981,29982,29982,29983,29983,29984,29982,29983,29983,29982,29982,29983,29981,29982]} 1. b3 {[%emt 0:00:06]} d5 {[%emt 0:00:07]} 2. Bb2 {[%emt 0:00:06]} Nd7 {[%emt 0:00:34]} 3. Nf3 {[%emt 0:00:14]} Ngf6 {[%emt 0:00:12]} 4. c4 {[%emt 0:00:49]} e6 {[%emt 0:00:29]} 5. e3 {[%emt 0:00:34]} Be7 {[%emt 0:00:48]} 6. d4 {[%emt 0:00:43]} O-O {[%emt 0:00:16]} 7. Bd3 {[%emt 0:00:26]} b6 {[%emt 0:01:52]} 8. O-O {[%emt 0:20:44]} Bb7 {[%emt 0:00:31]} 9. Qe2 {[%emt 0:02:09]} c5 {[%emt 0:06:08]} 10. Nbd2 {[%emt 0:01:28] is the legacy move (10.Rd1).} Rc8 {[%emt 0:07:24] E14: Queen's Indian: Classical Variation (4 e3).} 11. Rac1 {[%emt 0:01:31]} Ne4 {[%emt 0:02:09]} 12. cxd5 {[%emt 0:03:35]} exd5 {[%emt 0:00:18] White has an edge.} 13. Rfd1 {[%emt 0:03:55]} cxd4 {[%emt 0:06:03] [#]} 14. exd4 $146 {[%emt 0:21:59]} ({Much worse is} 14. Bxd4 Rxc1 15. Rxc1 Ndc5 $11) ({White should play} 14. Nxd4 $14 Nec5 15. N2f3) ({Predecessor:} 14. Nxd4 Ndc5 15. Nf5 Bf6 16. Nxe4 dxe4 17. Bxe4 Ba6 18. Nh6+ Kh8 19. Nxf7+ Rxf7 20. Rxd8+ Rxd8 21. Qh5 Nxe4 22. Qxf7 Bxb2 23. Qe7 {1-0 (24) Iwraeus,L (1906)-Seo,J (2132) Vaxjo 2016}) 14... Nxd2 {[%emt 0:08:01]} 15. Qxd2 {[%emt 0:00:58]} Bd6 {[%emt 0:00:57]} (15... Rxc1 {simplifies} 16. Qxc1 Bd6 17. Ba3 Nb8) 16. Ne5 {[%emt 0:01:54]} (16. Rxc8 {simplifies} Bxc8 17. Ne5 Nf6 18. f3) 16... f6 {[%emt 0:13:07]} (16... Nf6 {simplifies} 17. Rxc8 Bxc8 18. f3 Be6) 17. Nf3 {[%emt 0:05:03][%cal Be5f3,Bf3h4,Bh4f5,Bf5h6,Bh6g4][%mdl 32]} Re8 {[%emt 0:02:48]} 18. Nh4 {[%emt 0:01:49]} Nf8 {[%emt 0:06:51]} (18... Rxc1 {simplifies} 19. Rxc1 g6 20. g3 Qe7) 19. Nf5 {[%emt 0:01:56]} (19. Bb5 {simplifies} Re4 20. g3 Rxc1 21. Rxc1 g6 22. f4) 19... Bb8 {[%emt 0:00:39]} 20. Ba3 {[%emt 0:02:36]} g6 {[%emt 0:07:46]} 21. Nh6+ {[%emt 0:02:16]} Kg7 {[%emt 0:00:02]} 22. Ng4 $1 {[%emt 0:00:17] Black must now prevent Qh6+. White is much more active.} f5 {[%emt 0:04:36] White now steadily converts the win.} ({Black should try} 22... Bd6 $14 23. Bxd6 Qxd6) 23. Qh6+ $1 $16 {[%emt 0:03:00]} ({Resist} 23. Rxc8 Bxc8 24. Ne5 Bxe5 25. dxe5 Ne6 $16) 23... Kg8 {[%emt 0:00:02] [#]} (23... Kh8 $16 {keeps fighting.}) 24. Bxf5 $1 $18 {[%emt 0:06:09][%mdl 512]} Rxc1 {[%emt 0:07:31]} 25. Rxc1 {[%emt 0:00:17]} Bd6 {[%emt 0:04:33]} 26. Bxd6 {[%emt 0:02:24]} Qxd6 {[%emt 0:00:01]} 27. Qg5 $40 {[%emt 0:00:22][%mdl 128] White has strong attack.} Kh8 {[%emt 0:02:00]} 28. Ne5 {[%emt 0:02:13] White wants to mate with Nf7+.} Qe7 {[%emt 0:00:59] Prevents Nf7+.} 29. Qxe7 {[%emt 0:05:22]} Rxe7 {[%emt 0:00:01]} 30. Bg4 {[%emt 0:00:41]} h5 {[%emt 0:01:04]} 31. Bc8 {[%emt 0:04:42]} Bxc8 $2 {[%emt 0:00:21]} (31... Kh7 32. Bxb7 Rxb7) 32. Rxc8 {[%emt 0:00:02]} Kg7 {[%emt 0:00:02] [#]} 33. Rxf8 $1 {[%emt 0:01:44][%mdl 4608] Endgame KRN-KR} Rc7 {[%emt 0:01:22] [#] Against Rf7+} (33... Rxe5 34. dxe5) 34. Rf7+ $1 {[%emt 0:00:45]} Rxf7 {[%emt 0:00:01]} 35. Nxf7 {[%emt 0:00:01]} Kxf7 {[%emt 0:00:03] KP-KP} 36. Kf1 {[%emt 0:00:21]} Ke6 {[%emt 0:00:36]} 37. Ke2 {[%emt 0:00:06]} b5 {[%emt 0:00:34]} 38. b4 {[%emt 0:00:31]} g5 {[%emt 0:02:30]} 39. Ke3 {[%emt 0:00:47]} Kf5 {[%emt 0:00:16]} 40. h3 {[%emt 0:01:34]} Kf6 {[%emt 0:02:32]} 41. h4 {[%emt 0:33:24]} gxh4 {[%emt 0:31:05] [#]} 42. Kf4 $1 {[%emt 0:00:00] White mates.} a6 {[%emt 0:00:00]} 43. a3 {[%emt 0:00:00]} Kg6 {[%emt 0:00:00]} 44. Ke5 {[%emt 0:00:00]} Kg5 {[%emt 0:00:00]} 45. Kxd5 {[%emt 0:00:00]} h3 {[%emt 0:00:00]} 46. gxh3 {[%emt 0:00:00]} Kh4 {[%emt 0:00:00]} 47. Kc6 {[%emt 0:00:00]} Kxh3 {[%emt 0:16:49]} 48. d5 {[%emt 0:00:00][%cal Bd4d5,Bd5d6][%mdl 32]} Kg2 {[%emt 0:00:00]} 49. d6 {[%emt 0:00:00] Weighted Error Value: White=0.11 (very precise) /Black=0.45} 1-0

[Event "Israeli Women Championship 2022"]
[Site "Yosiah Arad"]
[Date "2022.12.11"]
[Round "7.4"]
[White "Levitan, Ronit"]
[Black "Ovechkin, Lilia"]
[Result "1-0"]
[ECO "B06"]
[WhiteElo "1989"]
[BlackElo "1680"]
[Annotator "TA"]
[PlyCount "107"]
[EventDate "2022.12.05"]
[EventType "tourn"]
[EventCountry "ISR"]
[SourceTitle "playchess.com"]
[Source "ChessBase"]
[SourceQuality "1"]
[TimeControl "40/5400+30:1800+30"]

{[%evp 9,107,70,67,76,74,72,90,39,50,33,47,0,0,-35,-29,-27,-29,-23,0,0,12,-9,4,0,0,0,0,0,0,8,0,0,0,0,0,0,37,19,164,0,29,0,260,252,218,198,431,0,0,0,0,2,6,0,72,0,0,-67,5,0,0,0,81,0,0,-20,-20,-29,0,0,0,0,0,0,0,0,0,0,0,0,37,0,0,38,28,0,33,0,12,0,2377,1839,12841,12842,12846,12844,12847,12847,12849,12849]} 1. e4 {[%emt 0:00:23]} d6 {[%emt 0:02:55]} 2. d4 {[%emt 0:00:15]} g6 {[%emt 0:00:12]} 3. Nc3 {[%emt 0:00:06]} Bg7 {[%emt 0:00:13]} 4. Nf3 {[%emt 0:00:56]} e6 {[%emt 0:00:43]} 5. Be3 {[%emt 0:02:18]} Ne7 {[%emt 0:00:28]} 6. Qd2 {[%emt 0:02:24] B06: Modern Defence.} h6 {[%emt 0:07:15]} 7. Bd3 {[%emt 0:07:19] White is more active.} Nd7 {[%emt 0:09:10]} 8. h4 {[%emt 0:11:22]} ({Better is} 8. O-O $16) 8... a6 $14 {[%emt 0:04:13]} 9. O-O-O {[%emt 0:02:42][%cal Oe4e5]} b5 {[%emt 0:02:19] Inhibits e5.} 10. e5 {[%emt 0:05:35] [#]} (10. Kb1 $14) 10... Bb7 $146 {[%emt 0:08:57]} ({Predecessor:} 10... d5 11. Ne2 c5 12. dxc5 Qc7 13. Kb1 Nc6 14. Rhe1 Ncxe5 15. Nxe5 Bxe5 16. f4 Bf6 {1-0 (31) Efimenko,Z (2648)-De Santis,A (2337) San Marino 2006}) 11. exd6 {[%emt 0:12:09]} cxd6 {[%emt 0:00:13]} 12. Ne4 {[%emt 0:00:59]} Bxe4 {[%emt 0:07:42]} 13. Bxe4 {[%emt 0:00:05]} d5 {[%emt 0:00:34]} 14. Bd3 {[%emt 0:00:04]} Nb6 {[%emt 0:04:57]} 15. Bf4 {[%emt 0:13:46]} Nc6 {[%emt 0:04:37]} (15... Nc4 $5 {[%cal Rc4d2]} 16. Qe1 Rc8 $11) 16. Rhe1 {[%emt 0:04:12][%cal Od3g6]} Nc4 {[%emt 0:10:10]} 17. Bxc4 {[%emt 0:06:13]} bxc4 {[%emt 0:00:22]} 18. h5 {[%emt 0:05:53] [#] Black must now prevent hxg6.} g5 {[%emt 0:02:05]} 19. Be5 {[%emt 0:00:14]} O-O {[%emt 0:01:20]} 20. Bxg7 {[%emt 0:00:39]} Kxg7 {[%emt 0:00:04]} 21. Ne5 {[%emt 0:00:16]} Rc8 {[%emt 0:02:57][%cal Oc4c3] Threatens to win with ...c3!} 22. c3 {[%emt 0:01:12]} Ne7 {[%emt 0:10:02]} 23. f4 {[%emt 0:03:22]} Ng8 {[%emt 0:01:30]} (23... Nf5 $11 {and Black stays safe.}) 24. Ng4 $2 {[%emt 0:03:31]} (24. g4 $18) 24... Nf6 {[%emt 0:04:03]} 25. Nxh6 {[%emt 0:08:10]} (25. Nxf6 {simplifies} Qxf6 26. g3 Rg8 27. Re5) 25... Ne4 {[%emt 0:01:07][%mdl 8192] [#]} (25... gxf4 $1 $11 26. Qxf4 Nxh5 27. Qg4+ Kxh6) 26. Rxe4 $1 $18 {[%emt 0:00:06][%mdl 512]} dxe4 {[%emt 0:01:39]} 27. fxg5 {[%emt 0:00:05] aiming for Rf1.} f5 $2 {[%emt 0:04:50]} (27... f6 28. Ng4 (28. g6 Qa5 $16) 28... fxg5) 28. gxf6+ $2 {[%emt 0:06:36]} (28. d5 $18) 28... Qxf6 $11 {[%emt 0:00:17]} 29. Ng4 {[%emt 0:00:03]} Qf4 $36 {[%emt 0:01:35][%mdl 2048] White is under pressure.} 30. Ne3 {[%emt 0:00:53]} Qf2 {[%emt 0:03:19]} 31. Re1 {[%emt 0:03:14]} Qh4 {[%emt 0:03:04]} (31... Qxd2+ $11 {keeps the balance.} 32. Kxd2 Kh6) 32. g4 {[%emt 0:00:42]} (32. Qd1 $16) 32... Rf2 {[%emt 0:00:49]} 33. Qd1 {[%emt 0:00:29]} (33. Re2 $11 Rxe2 34. Qxe2) 33... Qg5 {[%emt 0:00:51]} (33... Qh2 $15 34. Nf1 (34. Qa4 $2 Rb8 $17) 34... Qf4+ 35. Ne3 (35. Nd2 $2 e3 $19) 35... Qh2) 34. d5 {[%emt 0:00:29]} exd5 {[%emt 0:01:58]} 35. Qd4+ $1 {[%emt 0:00:05]} Qf6 {[%emt 0:00:51]} (35... Kg8 $11) 36. Nf5+ {[%emt 0:00:58] Dancing on a razor blade.} (36. Nxd5 $2 Qxd4 37. cxd4 Rb8 $19) (36. Qxd5 $16 Kf8 37. Nxc4 (37. Qxe4 Rb8 $16)) 36... Rxf5 $1 {[%emt 0:00:32]} 37. gxf5 {[%emt 0:00:08] Intending Rg1+ and mate.} Qxd4 {[%emt 0:00:18]} 38. cxd4 {[%emt 0:00:03][%mdl 4096] Endgame KR-KR} Rf8 {[%emt 0:00:41]} 39. Rf1 {[%emt 0:01:19]} Kh6 {[%emt 0:00:04]} 40. f6 {[%emt 0:00:27]} Kxh5 {[%emt 0:00:12]} 41. Rf5+ {[%emt 0:03:07]} Kg4 {[%emt 0:01:04]} 42. Rxd5 {[%emt 0:01:39] Strongly threatening Kd2.} Rxf6 {[%emt 0:00:26] ...e3 is the strong threat.} (42... c3 {seems wilder.} 43. Rd6 cxb2+ 44. Kxb2 a5) 43. Re5 {[%emt 0:00:04] Prevents e3.} Kf3 {[%emt 0:00:58] Hoping for ...Ke3.} 44. Kd2 {[%emt 0:02:04]} Rd6 {[%emt 0:04:11]} 45. Kc3 {[%emt 0:00:27]} Ke3 {[%emt 0:01:46]} 46. d5 {[%emt 0:04:14]} Rd8 {[%emt 0:09:44]} (46... Kf4 $2 47. Kd4 $18) 47. a3 {[%emt 0:03:41]} (47. Kxc4 Rc8+ 48. Kb3 Kd4 $15) 47... Rd7 {[%emt 0:04:33]} 48. Rh5 {[%emt 0:01:28]} ({Much weaker is} 48. Kxc4 Rc7+ 49. Kb3 Kd4 $17) 48... Rb7 {[%emt 0:03:35]} 49. d6 {[%emt 0:00:27]} (49. Rf5 {simplifies} Rb3+ 50. Kxc4 Rd3 51. Rf6) 49... Rb3+ $2 {[%emt 0:00:28][%mdl 8192]} (49... Kf4 $11) 50. Kxc4 $18 {[%emt 0:00:57] White is clearly winning.} Rxb2 {[%emt 0:01:24]} 51. d7 {[%emt 0:02:01]} ({Worse is} 51. Rh3+ Kf4 $11) 51... Rc2+ {[%emt 0:06:20]} 52. Kd5 {[%emt 0:00:13]} Kf4 {[%emt 0:00:48]} 53. Kd6 {[%emt 0:00:41]} (53. d8=R $2 {loses.} Rd2+ 54. Kc4 Rxd8 55. Rh4+ Ke5 56. Rh5+ Kf4 57. Rh4+ Kf5 58. Rh5+ Kg4 $19) 53... e3 {[%emt 0:01:16]} 54. d8=Q {[%emt 0:00:11] Weighted Error Value: White=0.29 (precise) /Black=0.35} 1-0